fUSD/lending_fUSD_20250617
["ID","MTS","AMOUNT","RATE_DAILY","PERIOD"]
[366233802,1750145444637,-490.0,0.00016715,2]
[366233803,1750145444647,-1491.4,0.00016715,2]
[366233804,1750145444658,-490.0,0.00016715,2]
[366233805,1750145444668,-490.0,0.00016715,2]
[366233806,1750145444678,-490.0,0.00016715,2]
[366233807,1750145444688,-490.0,0.00016715,2]
[366233808,1750145444699,-490.0,0.00016715,2]
[366233809,1750145444708,-435.69530951,0.00016715,2]
[366233810,1750145445083,340.0,0.00015506,2]
[366233811,1750145445352,-490.0,0.00016714,2]
[366233812,1750145445363,-490.0,0.00016714,2]
[366233813,1750145445374,-1218.49,0.00016714,2]
[366233814,1750145445385,-54.30469049,0.00016715,2]
[366233815,1750145445396,-403.94,0.00016715,2]
[366233816,1750145445406,-490.0,0.00016715,2]
[366233817,1750145445416,-490.0,0.00016715,2]
[366233818,1750145445426,-288.22,0.00016715,2]
[366233819,1750145445437,-490.0,0.00016715,2]
[366233820,1750145445447,-388.43,0.00016715,2]
[366233821,1750145445458,-490.0,0.00016715,2]
[366233822,1750145445468,-345.01,0.00016715,2]
[366233823,1750145445480,-376.9,0.00016715,2]
[366233824,1750145445490,-490.0,0.00016715,2]
[366233825,1750145445500,-666.42,0.00016715,2]
[366233826,1750145445510,-490.0,0.00016715,2]
[366233827,1750145445520,-490.0,0.00016715,2]
[366233828,1750145445530,-490.0,0.00016715,2]
[366233829,1750145445541,-490.0,0.00016715,2]
[366233830,1750145445551,-490.0,0.00016715,2]
[366233831,1750145445561,-490.0,0.00016715,2]
[366233833,1750145445572,-490.0,0.00016715,2]
[366233834,1750145445582,-1087.19,0.00016715,2]
[366233835,1750145445592,-924.43,0.00016715,2]
[366233836,1750145445601,-490.0,0.00016715,2]
[366233837,1750145445612,-215.95,0.00016715,2]
[366233838,1750145445623,-490.0,0.00016715,2]
[366233839,1750145445633,-300.0,0.00016715,2]
[366233840,1750145445643,-151.0,0.00016716,2]
[366233841,1750145445653,-151.0,0.00016716,2]
[366233842,1750145445663,-153.650748,0.00016716,2]
[366233843,1750145445672,-151.0,0.00016716,2]
[366233844,1750145445683,-151.0,0.00016716,2]
[366233845,1750145445693,-151.0,0.00016716,2]
[366233846,1750145445702,-151.0,0.00016716,2]
[366233847,1750145445713,-151.0,0.00016716,2]
[366233848,1750145445724,-261.891214,0.00016716,2]
[366233849,1750145445735,-151.0,0.00016716,2]
[366233850,1750145445744,-151.0,0.00016716,2]
[366233851,1750145445756,-151.0,0.00016716,2]
[366233852,1750145445765,-157.993784,0.00016716,2]
[366233853,1750145445775,-282.560556,0.00016716,2]
[366233854,1750145445786,-151.0,0.00016716,2]
[366233855,1750145445795,-151.0,0.00016716,2]
[366233856,1750145445805,-151.0,0.00016716,2]
[366233857,1750145445815,-151.0,0.00016716,2]
[366233858,1750145445825,-151.0,0.00016716,2]
[366233860,1750145445835,-151.0,0.00016716,2]
[366233861,1750145445845,-151.0,0.00016716,2]
[366233862,1750145445856,-151.0,0.00016716,2]
[366233863,1750145445866,-151.0,0.00016716,2]
[366233864,1750145445876,-151.0,0.00016716,2]
[366233865,1750145445886,-283.952504,0.00016716,2]
[366233866,1750145445896,-151.0,0.00016716,2]
[366233867,1750145445906,-151.0,0.00016716,2]
[366233868,1750145445915,-151.0,0.00016716,2]
[366233869,1750145445926,-151.0,0.00016716,2]
[366233870,1750145445937,-151.832553,0.00016716,2]
[366233871,1750145445947,-151.0,0.00016716,2]
[366233872,1750145445957,-151.0,0.00016716,2]
[366233873,1750145445967,-151.0,0.00016716,2]
[366233874,1750145445979,-151.0,0.00016716,2]
[366233875,1750145445989,-151.0,0.00016716,2]
[366233876,1750145446000,-151.0,0.00016716,2]
[366233877,1750145446010,-151.0,0.00016716,2]
[366233878,1750145446020,-196.177307,0.00016716,2]
[366233879,1750145446031,-151.0,0.00016716,2]
[366233880,1750145446040,-151.0,0.00016716,2]
[366233881,1750145446050,-151.0,0.00016716,2]
[366233882,1750145446060,-262.94576726,0.00016716,2]
[366233883,1750145446070,-151.0,0.00016716,2]
[366233884,1750145446080,-151.0,0.00016716,2]
[366233886,1750145446090,-151.0,0.00016716,2]
[366233887,1750145446101,-490.0,0.00016716,2]
[366233888,1750145446110,-490.0,0.00016716,2]
[366233889,1750145446120,-490.0,0.00016716,2]
[366233890,1750145446131,-151.972224,0.00016716,2]
[366233891,1750145446141,-151.972224,0.00016716,2]
[366233892,1750145446153,-151.972224,0.00016716,2]
[366233893,1750145446163,-490.0,0.00016716,2]
[366233894,1750145446174,-151.972224,0.00016716,2]
[366233895,1750145446184,-151.972224,0.00016716,2]
[366233896,1750145446194,-151.972224,0.00016716,2]
[366233897,1750145446204,-151.0,0.00016716,2]
[366233898,1750145446214,-151.0,0.00016716,2]
[366233899,1750145446225,-151.0,0.00016716,2]
[366233900,1750145446235,-151.0,0.00016716,2]
[366233901,1750145446244,-151.0,0.00016716,2]
[366233902,1750145446255,-151.0,0.00016716,2]
[366233903,1750145446265,-151.0,0.00016716,2]
[366233904,1750145446276,-151.0,0.00016716,2]
[366233905,1750145446288,-151.0,0.00016716,2]
[366233906,1750145446298,-284.558341,0.00016716,2]
[366233907,1750145446308,-490.0,0.00016716,2]
[366233908,1750145446318,-490.0,0.00016716,2]
[366233909,1750145446329,-151.0,0.00016716,2]
[366233910,1750145446339,-151.0,0.00016716,2]
[366233911,1750145446349,-151.0,0.00016716,2]
[366233912,1750145446360,-151.0,0.00016716,2]
[366233913,1750145446371,-151.0,0.00016716,2]
[366233914,1750145446381,-151.0,0.00016716,2]
[366233915,1750145446391,-151.0,0.00016716,2]
[366233916,1750145446400,-151.0,0.00016716,2]
[366233917,1750145446410,-151.0,0.00016716,2]
[366233918,1750145446420,-151.0,0.00016716,2]
[366233919,1750145446430,-154.479714,0.00016716,2]
[366233920,1750145446440,-373.799597,0.00016716,2]
[366233921,1750145446451,-373.799597,0.00016716,2]
[366233922,1750145446460,-373.799597,0.00016716,2]
[366233923,1750145446470,-373.799597,0.00016716,2]
[366233924,1750145446480,-373.799597,0.00016716,2]
[366233925,1750145446489,-373.799597,0.00016716,2]
[366233926,1750145446499,-388.185631,0.00016716,2]
[366233927,1750145446513,-388.185631,0.00016716,2]
[366233928,1750145446523,-388.185631,0.00016716,2]
[366233929,1750145446532,-388.185631,0.00016716,2]
[366233930,1750145446542,-388.185631,0.00016716,2]
[366233931,1750145446552,-388.185631,0.00016716,2]
[366233932,1750145446562,-151.0,0.00016716,2]
[366233933,1750145446634,-151.611772,0.00016716,2]
[366233934,1750145446646,-188.934418,0.00016716,2]
[366233935,1750145446656,-188.934418,0.00016716,2]
[366233936,1750145446666,-188.934418,0.00016716,2]
[366233937,1750145446675,-188.934418,0.00016716,2]
[366233938,1750145446685,-188.934418,0.00016716,2]
[366233939,1750145446695,-188.934418,0.00016716,2]
[366233940,1750145446705,-151.0,0.00016716,2]
[366233941,1750145446715,-151.0,0.00016716,2]
[366233942,1750145446726,-373.437787,0.00016716,2]
[366233943,1750145446737,-373.437787,0.00016716,2]
[366233944,1750145446746,-270.940364,0.00016716,2]
[366233945,1750145446756,-167.477807,0.00016716,2]
[366233946,1750145446766,-167.477807,0.00016716,2]
[366233947,1750145446776,-167.477807,0.00016716,2]
[366233948,1750145446786,-167.477807,0.00016716,2]
[366233949,1750145446797,-151.0,0.00016716,2]
[366233950,1750145446807,-151.0,0.00016716,2]
[366233951,1750145446817,-151.0,0.00016716,2]
[366233952,1750145446826,-151.0,0.00016716,2]
[366233953,1750145446836,-151.0,0.00016716,2]
[366233954,1750145446846,-151.0,0.00016716,2]
[366233955,1750145446855,-151.0,0.00016716,2]
[366233956,1750145446866,-151.0,0.00016716,2]
[366233957,1750145446876,-151.0,0.00016716,2]
[366233958,1750145446886,-151.0,0.00016716,2]
[366233959,1750145446895,-151.0,0.00016716,2]
[366233960,1750145446905,-920.791171,0.00016716,2]
[366233961,1750145446915,-920.791171,0.00016716,2]
[366233962,1750145446924,-920.791171,0.00016716,2]
[366233963,1750145446934,-920.791171,0.00016716,2]
[366233964,1750145446944,-196.007888,0.00016716,2]
[366233965,1750145446954,-151.0,0.00016716,2]
[366233966,1750145446963,-210.0,0.00016716,2]
[366233967,1750145446975,-122.90995049,0.00016716,2]
[366233968,1750145446990,-73.09793751,0.00016716,2]
[366233969,1750145446999,-151.0,0.00016716,2]
[366233970,1750145447009,-151.0,0.00016716,2]
[366233971,1750145447019,-287.20307,0.00016716,2]
[366233972,1750145447029,-152.77941,0.00016716,2]
[366233973,1750145447039,-416.270486,0.00016716,2]
[366233974,1750145447048,-416.270486,0.00016716,2]
[366233975,1750145447058,-151.0,0.00016716,2]
[366233976,1750145447068,-151.0,0.00016716,2]
[366233977,1750145447077,-151.0,0.00016716,2]
[366233978,1750145447087,-151.0,0.00016716,2]
[366233979,1750145447097,-164.635702,0.00016716,2]
[366233980,1750145447107,-164.635702,0.00016716,2]
[366233981,1750145447117,-151.0,0.00016716,2]
[366233982,1750145447128,-209.563949,0.00016716,2]
[366233983,1750145447138,-151.0,0.00016716,2]
[366233984,1750145447148,-209.563949,0.00016716,2]
[366233985,1750145447158,-203.187516,0.00016716,2]
[366233986,1750145447167,-203.187516,0.00016716,2]
[366233987,1750145447177,-300.0,0.00016717,2]
[366233988,1750145447187,-151.0,0.00016718,2]
[366233989,1750145447196,-151.0,0.00016718,2]
[366233990,1750145447206,-8.48716906,0.00016718,2]
[366233991,1750145447218,-142.51283094,0.00016718,2]
[366233992,1750145447229,-151.0,0.00016718,2]
[366233993,1750145447238,-151.0,0.00016718,2]
[366233994,1750145447248,-151.0,0.00016718,2]
[366233995,1750145447258,-151.0,0.00016719,2]
[366233996,1750145447267,-151.0,0.00016719,2]
[366233997,1750145447279,-510.92,0.00016735,2]
[366233998,1750145447290,-551.99814756,0.00016735,2]
[366233999,1750145447745,-455.54036452,0.00016735,2]
[366234000,1750145447757,-744.79148792,0.00016735,2]
[366234001,1750145447767,-151.0,0.00016736,2]
[366234002,1750145447776,-151.0,0.00016736,2]
[366234003,1750145447786,-373.437787,0.00016736,2]
[366234004,1750145447795,-167.477807,0.00016736,2]
[366234005,1750145447806,-167.477807,0.00016736,2]
[366234006,1750145447815,-151.0,0.00016736,2]
[366234007,1750145447825,-196.007888,0.00016736,2]
[366234008,1750145447835,-151.0,0.00016736,2]
[366234009,1750145447845,-196.007888,0.00016736,2]
[366234010,1750145447855,-151.0,0.00016736,2]
[366234011,1750145447868,-151.0,0.00016736,2]
[366234012,1750145447878,-416.270486,0.00016736,2]
[366234013,1750145447888,-416.270486,0.00016736,2]
[366234014,1750145447899,-151.0,0.00016736,2]
[366234015,1750145447909,-164.635702,0.00016736,2]
[366234016,1750145447919,-164.635702,0.00016736,2]
[366234017,1750145447929,-152.755498,0.00016736,2]
[366234018,1750145447939,-461.41146108,0.00016737,2]
[366234019,1750145447956,-990.0,0.00016737,2]
[366234020,1750145447968,-551.58853892,0.00016737,2]
[366234021,1750145447979,-927.0,0.00016737,2]
[366234022,1750145447988,-558.0,0.00016737,2]
[366234023,1750145447998,-1164.277,0.00016737,2]
[366234024,1750145448008,-7113.0,0.00016737,2]
[366234025,1750145448018,-155.0,0.00016737,2]
[366234026,1750145448028,-946.0,0.00016737,2]
[366234027,1750145448038,-3333.0,0.00016737,2]
[366234028,1750145448047,-854.0,0.00016737,2]
[366234029,1750145448057,-226.10600763,0.00016742,2]
[366234030,1750145448067,-151.0,0.00016767,2]
[366234031,1750145448078,-151.0,0.00016767,2]
[366234032,1750145448087,-151.0,0.00016767,2]
[366234033,1750145448098,-209.563949,0.00016767,2]
[366234034,1750145448109,-209.563949,0.00016767,2]
[366234035,1750145448118,-203.187516,0.00016767,2]
[366234036,1750145448128,-203.187516,0.00016767,2]
[366234037,1750145448138,-150.0,0.00016769,2]
[366234038,1750145448148,-150.0,0.00016769,2]
[366234039,1750145448157,-150.0,0.00016769,2]
[366234040,1750145448167,-226.10600763,0.00016774,2]
[366234041,1750145448178,-192.4384617,0.0001678,2]
[366234042,1750145448188,-163.84707703,0.00016781,2]
[366234043,1750145448197,-168.0,0.00016793,2]
[366234044,1750145448207,-151.0,0.00016795,2]
[366234045,1750145448217,-28458.07787762,0.000168,2]
[366234046,1750145448230,-2132.9,0.000168,2]
[366234047,1750145448242,-1480.41520165,0.000168,2]
[366234048,1750145448254,-1517.21429158,0.000168,2]
[366234049,1750145448279,-151.0,0.00016716,2]
[366234050,1750145448292,-1215.26971676,0.000168,2]
[366234051,1750145448412,-1549.09197492,0.000168,2]
[366234052,1750145448424,-2116.71357406,0.000168,2]
[366234053,1750145448436,-658.99,0.000168,2]
[366234054,1750145448447,-600.75,0.000168,2]
[366234055,1750145448459,-263.258183,0.000168,2]
[366234056,1750145448472,-431.22961645,0.000168,2]
[366234057,1750145448691,151.0,0.00016061,2]
[366234059,1750145481765,168.32,0.00015849,2]
[366234061,1750145502433,200.0,0.00015506,2]
[366234062,1750145523614,-169.33838923,0.00016196,4]
[366234063,1750145527075,-151.0,0.00016148,2]
[366234064,1750145527101,-19.87848303,0.00016196,4]
[366234065,1750145529120,-258.76137661,0.00016196,4]
[366234066,1750145532293,-152.02175113,0.00016196,4]
[366234067,1750145532316,-31.74687226,0.00016243,2]
[366234068,1750145538623,1031.0,0.00016,2]
[366234069,1750145561867,169.06686,0.00015506,2]
[366234070,1750145562540,666.0,0.00015778,2]
[366234072,1750145599738,500.0,0.00012068,2]
[366234074,1750145651719,202.0,0.00016095,2]
[366234075,1750145670974,1000.0,0.00015762,2]
[366234081,1750145836843,226.17,0.00015706,2]
[366234084,1750146011764,202.0,0.00015908,2]
[366234088,1750146190465,271.05295992,0.00014,2]
[366234089,1750146190491,10000.0,0.00014,2]
[366234090,1750146190516,10000.0,0.00014,2]
[366234091,1750146190541,10000.0,0.00014,2]
[366234092,1750146190572,10000.0,0.00014,2]
[366234093,1750146190597,10000.0,0.00014,2]
[366234094,1750146190622,10000.0,0.00014,2]
[366234095,1750146190647,10000.0,0.00014,2]
[366234096,1750146190672,10000.0,0.00014,2]
[366234097,1750146190696,10000.0,0.00014,2]
[366234098,1750146190722,10000.0,0.00014,2]
[366234099,1750146190745,10000.0,0.00014,2]
[366234100,1750146190769,10000.0,0.00014,2]
[366234101,1750146190793,10000.0,0.00014,2]
[366234102,1750146190816,10000.0,0.00014,2]
[366234103,1750146190845,38677.84779398,0.00014,2]
[366234104,1750146190869,106970.0,0.00014,2]
[366234105,1750146190899,962688.6690567,0.00014,2]
[366234106,1750146190925,1920000.0,0.00014,2]
[366234107,1750146190952,2000000.0,0.00014,2]
[366234108,1750146190976,121784.8995,0.00014,2]
[366234109,1750146190999,121784.8995,0.00014,2]
[366234110,1750146191023,121784.8995,0.00014,2]
[366234111,1750146191047,121784.8995,0.00014,2]
[366234112,1750146191071,121784.8995,0.00014,2]
[366234113,1750146191095,121784.8995,0.00014,2]
[366234114,1750146191120,121784.8995,0.00014,2]
[366234115,1750146191145,121784.8995,0.00014,2]
[366234116,1750146191170,121784.8995,0.00014,2]
[366234117,1750146191195,121784.8995,0.00014,2]
[366234118,1750146191221,121784.8995,0.00014,2]
[366234119,1750146191247,121784.8995,0.00014,2]
[366234120,1750146191272,121784.8995,0.00014,2]
[366234121,1750146191296,121784.8995,0.00014,2]
[366234122,1750146191320,121784.8995,0.00014,2]
[366234123,1750146191344,121784.8995,0.00014,2]
[366234124,1750146191368,121784.8995,0.00014,2]
[366234125,1750146191404,121784.8995,0.00014,2]
[366234126,1750146191433,121784.8995,0.00014,2]
[366234127,1750146191459,121784.8995,0.00014,2]
[366234128,1750146191484,121784.8995,0.00014,2]
[366234129,1750146191510,121784.8995,0.00014,2]
[366234130,1750146191535,121784.8995,0.00014,2]
[366234131,1750146191565,121784.8995,0.00014,2]
[366234132,1750146191592,121784.8995,0.00014,2]
[366234133,1750146191617,121784.8995,0.00014,2]
[366234134,1750146191645,121784.8995,0.00014,2]
[366234135,1750146191671,121784.8995,0.00014,2]
[366234136,1750146191696,121784.8995,0.00014,2]
[366234137,1750146191721,121784.8995,0.00014,2]
[366234138,1750146191746,121784.8995,0.00014,2]
[366234139,1750146191773,121784.8995,0.00014,2]
[366234140,1750146191798,121784.8995,0.00014,2]
[366234141,1750146191822,121784.8995,0.00014,2]
[366234142,1750146191848,121784.8995,0.00014,2]
[366234143,1750146191872,121784.8995,0.00014,2]
[366234144,1750146191903,121784.8995,0.00014,2]
[366234145,1750146191929,121784.8995,0.00014,2]
[366234146,1750146191955,121784.8995,0.00014,2]
[366234147,1750146191982,121784.8995,0.00014,2]
[366234148,1750146192011,10000.0,0.00014,2]
[366234149,1750146192044,2000000.0,0.00014,2]
[366234150,1750146192071,2858.13540538,0.00014,2]
[366234151,1750146192097,2858.13540538,0.00014,2]
[366234152,1750146192121,2858.13540538,0.00014,2]
[366234153,1750146192146,2858.13540538,0.00014,2]
[366234154,1750146192170,2858.13540538,0.00014,2]
[366234155,1750146192194,2858.13540538,0.00014,2]
[366234156,1750146192218,2858.13540538,0.00014,2]
[366234157,1750146192242,2858.13540538,0.00014,2]
[366234158,1750146192266,2858.13540538,0.00014,2]
[366234159,1750146192290,2858.13540538,0.00014,2]
[366234160,1750146192314,2858.13540538,0.00014,2]
[366234161,1750146192407,-271.45818443,0.00014,2]
[366234164,1750146198306,-217.58773344,0.00014,2]
[366234165,1750146200074,-202.0,0.00014,2]
[366234166,1750146201764,-229.43053621,0.00014,2]
[366234168,1750146206389,-188.6546574,0.00014,2]
[366234170,1750146209378,-154.12970542,0.00014,2]
[366234171,1750146214255,-288.98396814,0.00014,2]
[366234172,1750146218311,-250.1772149,0.00014,2]
[366234173,1750146222878,-229.66944764,0.00014,2]
[366234174,1750146225115,-453.61911184,0.00014,2]
[366234175,1750146230940,-404.14843592,0.00014,2]
[366234176,1750146234269,-261.21998438,0.00014,2]
[366234177,1750146238476,-259.93863424,0.00014,2]
[366234180,1750146241227,-304.55819441,0.00014,2]
[366234181,1750146248406,-204.0,0.00014,2]
[366234183,1750146253622,-168.82307647,0.00014,2]
[366234184,1750146256725,-226.97773313,0.00014,2]
[366234185,1750146262824,-408.92942192,0.00014,2]
[366234186,1750146266220,-266.83357352,0.00014,2]
[366234187,1750146271069,-181.99735376,0.000134,4]
[366234188,1750146272517,-118.00264624,0.000134,4]
[366234189,1750146272540,-267.40674198,0.000135,4]
[366234190,1750146276160,1400.0,0.000137,5]
[366234191,1750146278326,1700.0,0.000138,5]
[366234192,1750146278364,-366.15828746,0.000135,4]
[366234193,1750146280438,300.0,0.000139,5]
[366234194,1750146281425,-66.43497056,0.000135,4]
[366234195,1750146281451,-135.26066263,0.000136,4]
[366234196,1750146287796,-310.53287568,0.000136,4]
[366234198,1750146294554,-405.6731263,0.000136,4]
[366234199,1750146297439,-148.53333539,0.000136,4]
[366234200,1750146297464,-17.62666461,0.00013999,2]
[366234201,1750146301888,-250.98163072,0.00013998,2]
[366234202,1750146304356,-49.01836928,0.00013998,2]
[366234203,1750146304380,-249.98163072,0.00013998,2]
[366234204,1750146311530,-357.26402508,0.00013998,2]
[366234205,1750146318357,-150.0,0.000126,2]
[366234206,1750146318392,-109.32360099,0.00012833,2]
[366234207,1750146323612,-150.0,0.000126,2]
[366234208,1750146323636,-40.67639901,0.00012833,2]
[366234209,1750146323660,-69.60105901,0.00013067,2]
[366234210,1750146326707,-80.39894099,0.00013067,2]
[366234211,1750146326733,-150.0,0.000133,2]
[366234212,1750146326760,-102.50820958,0.00013533,2]
[366234213,1750146329855,-47.49179042,0.00013533,2]
[366234214,1750146329881,-218.97732938,0.00013699,2]
[366234215,1750146334086,-184.00307418,0.00013699,2]
[366234216,1750146338284,-152.0,0.00013699,2]
[366234217,1750146342105,-72.84959644,0.00013699,2]
[366234218,1750146342128,-150.0,0.00013767,2]
[366234219,1750146342152,-17.03374202,0.00013998,2]
[366234220,1750146346044,-300.0,0.00013998,2]
[366234221,1750146351404,-219.0701159,0.00013998,2]
[366234222,1750146354026,-56.65048628,0.00013998,2]
[366234223,1750146354052,-149.34951372,0.00013998,2]
[366234224,1750146358946,-150.65048628,0.00013998,2]
[366234225,1750146358997,-149.69034242,0.00013999,2]
[366234226,1750146361004,-161.85310669,0.00013999,2]
[366234227,1750146368097,-300.0,0.00013998,2]
[366234228,1750146368122,-10.04151566,0.00013999,2]
[366234229,1750146370418,-157.14,0.00013999,2]
[366234230,1750146374008,-3.64837062,0.00013999,2]
[366234231,1750146374036,-149.35839567,0.00013999,2]
[366234232,1750146375922,-350.64160433,0.00013999,2]
[366234233,1750146375948,-45.17878411,0.00013999,2]
[366234234,1750146378880,-224.31826887,0.00013999,2]
[366234235,1750146381860,-171.65019812,0.00013999,2]
[366234236,1750146384186,-58.8527489,0.00013999,2]
[366234237,1750146384211,-288.20323104,0.00013999,2]
[366234238,1750146386093,-47.235478,0.00013999,2]
[366234239,1750146386117,-238.17818039,0.00013999,2]
[366234240,1750146386143,-47.22117935,0.00013999,2]
[366234241,1750146391003,-175.5135606,0.00013999,2]
[366234242,1750146393536,-203.72100724,0.00013999,2]
[366234244,1750146399318,-156.94899276,0.00013699,2]
[366234245,1750146402239,-181.74687226,0.00013699,2]
[366234246,1750146410729,-13.02413498,0.00013699,2]
[366234247,1750146410759,-73.54425281,0.00013999,2]
[366234248,1750146410783,-286.97804346,0.00013999,2]
[366234250,1750146426339,-169.33838923,0.00013998,2]
[366234251,1750146441628,-199.63583333,0.000139,2]
[366234252,1750146441654,-59.12554328,0.000139,2]
[366234253,1750146457012,-171.90023416,0.000139,2]
[366234254,1750146471358,-151.0,0.000139,2]
[366234255,1750146485767,-188.21032092,0.000139,2]
[366234256,1750146488377,-273.73967908,0.000139,2]
[366234257,1750146494582,-239.09288837,0.000139,2]
[366234258,1750146497795,-157.14,0.000139,2]
[366234259,1750146502769,-203.25964966,0.000139,2]
[366234260,1750146504595,-31.67438217,0.000139,2]
[366234261,1750146504622,-154.24198311,0.000139,2]
[366234262,1750146504651,-22.96801321,0.00013949,4]
[366234263,1750146506276,-225.75001562,0.00013949,4]
[366234264,1750146510429,-223.64746197,0.00013949,4]
[366234268,1750146512854,-127.6345092,0.00013949,4]
[366234269,1750146512878,-280.59109669,0.00013998,2]
[366234270,1750146520632,-19.40890331,0.00013998,2]
[366234271,1750146520658,-213.02195654,0.00013999,2]
[366234272,1750146520686,-21.87390253,0.00013999,2]
[366234273,1750146530782,-231.08098559,0.00013999,2]
[366234274,1750146534599,-167.85076084,0.00013999,2]
[366234278,1750146541984,-162.75269479,0.000139,2]
[366234279,1750146542010,-216.3013493,0.000139,2]
[366234280,1750146545496,-212.59610491,0.000134,4]
[366234281,1750146547944,-87.40389509,0.000134,4]
[366234282,1750146547970,-137.83610491,0.000135,4]
[366234283,1750146550949,1200.0,0.000137,5]
[366234284,1750146552211,-221.63810457,0.000135,4]
[366234285,1750146553038,1600.0,0.000138,5]
[366234286,1750146555212,300.0,0.000139,5]
[366234287,1750146556356,-240.52579052,0.000135,4]
[366234288,1750146556380,-900.0,0.000136,4]
[366234289,1750146556404,-3759.99302148,0.000139,2]
[366234290,1750146559479,-180.25,0.000139,2]
[366234294,1750146563961,-180.25,0.000139,2]
[366234295,1750146567350,-180.25,0.000139,2]
[366234296,1750146569743,-180.25,0.000139,2]
[366234297,1750146574335,-180.25,0.000139,2]
[366234298,1750146577942,-168.57766064,0.000139,2]
[366234299,1750146582982,-191.92233936,0.000139,2]
[366234300,1750146585330,-180.25,0.000139,2]
[366234302,1750146590964,-180.25,0.000139,2]
[366234303,1750146599336,-180.25,0.000139,2]
[366234304,1750146608377,-180.25,0.00013899,2]
[366234305,1750146614097,-119.75,0.00013899,2]
[366234306,1750146614123,-60.5,0.00013899,2]
[366234307,1750146617566,-180.25,0.00013899,2]
[366234308,1750146625819,-213.18312774,0.00013899,2]
[366234313,1750146631960,-746.06687226,0.00013899,2]
[366234314,1750146631970,-600.0,0.000139,4]
[366234315,1750146631981,-8666.07051999,0.000139,2]
[366234316,1750146631992,-67776.9628973,0.000139,2]
[366234317,1750146632112,-3606.09,0.000139,2]
[366234318,1750146632244,-4350.73926302,0.000139,2]
[366234320,1750146632398,-180.25,0.000139,2]
[366234325,1750146634230,-180.25,0.000139,2]
[366234328,1750146637812,-14313.2714423,0.000139,2]
[366234329,1750146637822,-374.56262427,0.000139,2]
[366234330,1750146637834,-600.0,0.00013954,4]
[366234331,1750146637848,-478.03499838,0.00013973,2]
[366234332,1750146637861,-23.14349017,0.00013973,2]
[366234333,1750146637870,-424.21495098,0.0001399,2]
[366234334,1750146637881,-424.21495098,0.0001399,2]
[366234335,1750146637890,-424.21495098,0.0001399,2]
[366234336,1750146637901,-151.21,0.0001399,2]
[366234337,1750146637911,-151.21,0.0001399,2]
[366234338,1750146637921,-151.21,0.0001399,2]
[366234339,1750146637932,-151.21,0.0001399,2]
[366234340,1750146637945,-151.21,0.0001399,2]
[366234341,1750146637955,-151.21,0.0001399,2]
[366234342,1750146637965,-151.21,0.0001399,2]
[366234343,1750146637976,-151.21,0.0001399,2]
[366234344,1750146637986,-151.21,0.0001399,2]
[366234345,1750146637998,-79.19435104,0.00013999,2]
[366234346,1750146638009,-257.58706394,0.00013999,2]
[366234347,1750146638019,-500.0,0.00013999,2]
[366234348,1750146638030,-471.73197852,0.00013999,2]
[366234349,1750146638040,-500.0,0.00013999,2]